Cogmind - Beta 13 *** ADVENTURER MODE // 2024.04.18 @ 17:03:39 Player: Beagleofevil Result: Self-destructed Performance ------------- Evolutions (1) 500 Regions Visited (3) 600 Robots Destroyed (25) 125 Value Destroyed (685) 685 Prototype IDs (2) 40 Alien Tech Used (0) 0 Bonus (-57) -57 TOTAL SCORE: 1893 Bonus ------- Friendly Fire -57 Cogmind --------- Core Integrity 329/400 Matter 286/300 Energy 37/100 System Corruption 0% Temperature Cool (76) Movement Treading (240) Ox1 Location -9/Materials Parts ------- > --- POWER (1) -------- (None) > --- PROPULSION (2) --- Light Treads > --- UTILITY (4) ------ Large Storage Unit Visual Processing Unit Sensor Array Signal Interpreter > --- WEAPON (2) ------- Light EM Pulse Cannon EMP Blaster > --- INVENTORY (15) --- Light Ion Engine Light Treads Improved Heat Sink High-capacity Matter Pod (62) Medium Armor Plating Rocket Launcher Rocket Launcher Peak State ------------ > --- POWER ------------ Light Ion Engine > --- PROPULSION ------- Light Treads Light Treads > --- UTILITY ---------- Large Storage Unit Visual Processing Unit Sensor Array Signal Interpreter > --- WEAPON ----------- Light EM Pulse Cannon Rocket Launcher > --- INVENTORY -------- Light Ion Engine Light Treads Improved Heat Sink High-capacity Matter Pod Medium Armor Plating EM Pulse Gun EMP Blaster Rocket Launcher [Rating: 13] Favorites ----------- Power Light Ion Engine Engine Light Ion Engine Power Core Light Nuclear Core Propulsion Light Treads Treads Light Treads Wheel Compact Wheel Utility Large Storage Unit Device Sensor Array Storage Large Storage Unit Processor Signal Interpreter Weapon Assault Rifle Energy Gun EM Pulse Gun Energy Cannon Light EM Pulse Cannon Ballistic Gun Assault Rifle Launcher EMP Blaster Build | -11 -10 -10 -9 ------- Run | Yrd Mat Min Mat Slots Evolved 2 | . . . 2 Power . | . . . . Propulsion . | . . . . Utility 2 | . . . 2 Weapon . | . . . . Parts Attached 27 | 7 8 6 6 Power 3 | 1 . 2 . Engine 2 | 1 . 1 . Core 1 | . . 1 . Reactor . | . . . . Propulsion 8 | 2 4 2 . Treads 4 | . 2 2 . Leg . | . . . . Wheel 4 | 2 2 . . Hover . | . . . . Flight . | . . . . Utility 7 | 2 3 . 2 Device 2 | 1 . . 1 Storage 3 | 1 2 . . Processor 2 | . 1 . 1 Hackware . | . . . . Protection . | . . . . Artifact . | . . . . Weapon 9 | 2 1 2 4 Energy Gun 3 | 1 1 . 1 Energy Cannon 1 | . . . 1 Ballistic Gun 1 | 1 . . . Ballistic Cannon . | . . . . Launcher 4 | . . 2 2 Special Weapon . | . . . . Impact Weapon . | . . . . Slashing Weapon . | . . . . Piercing Weapon . | . . . . Special Melee Weapon . | . . . . Unidentified Prototypes . | . . . . Parts Lost 4 | . 2 . 2 Power 1 | . . . 1 Propulsion 1 | . . . 1 Utility 1 | . 1 . . Weapon 1 | . 1 . . Highest Loss Streak 2 | . 1 . 2 To Critical Strikes . | . . . . Average Slot Usage (%) 98 | . 97 100 95 Engine 8 | . 14 2 11 Core 4 | . . 11 . Treads 16 | . 5 20 22 Wheel 9 | . 22 7 . Device 6 | . 10 . 11 Storage 13 | . 14 14 11 Processor 11 | . 1 14 18 Energy Gun 4 | . 13 . 1 Ballistic Gun 12 | . 14 14 7 Launcher 8 | . . 14 9 Naked Turns . | . . . . Heaviest Build 88 | 13 88 31 32 Greatest Support 40 | 32 40 40 40 Greatest Overweight (x) 2 | . 2 . . Average Overweight (x) . | . . . . Largest Inventory Capacity 25 | 8 25 15 15 Average Capacity 13 | 6 12 15 15 Most Carried 9 | 5 9 8 8 Average Carried 6 | 3 6 6 6 Final Capacity 15 | 8 15 15 15 Final Carried 7 | 4 7 7 7 Class Distribution -------------------- 83% | Mutant 16% | Skirmisher Dominant Class ---------------- Mutant | -10/Materials Mutant | -10/Mines Skirmisher | -9/Materials Resources | -11 -10 -10 -9 ----------- Run | Yrd Mat Min Mat Matter Collected 787 | 141 316 133 197 Remotely . | . . . . Salvage Created 889 | 23 349 160 357 Parts 59 | 3 22 7 27 Haulers Intercepted 2 | . 1 . 1 Recyclers Shooed . | . . . . Parts Field Recycled . | . . . . Retrieved Matter . | . . . . Parts Self-Destructed . | . . . . Prevented . | . . . . Kills | -11 -10 -10 -9 ------- Run | Yrd Mat Min Mat Combat Hostiles Destroyed 19 | . 5 4 10 Guns 12 | . 4 2 6 AOE 7 | . 1 2 4 Classes Destroyed 7 | 1 3 . 3 Tunneler 1 | 1 . . . Hauler 2 | . 1 . 1 Watcher 3 | . 3 . . Swarmer 4 | . . . 4 Grunt 13 | . 5 4 4 Duelist 1 | . . . 1 Sentry 1 | . . . 1 Best Kill Streak 6 | 1 3 2 6 Combat Bots Only 5 | . 2 2 5 Max Kills in Single Turn 4 | 1 1 1 4 Gunslinging . | . . . . Exploded 4 | . 1 1 4 Melee . | . . . . Uniques/NPCs Destroyed . | . . . . Combat | -11 -10 -10 -9 -------- Run | Yrd Mat Min Mat Hostile Shots Fired 104 | . 38 12 54 Missed 28 | . 8 5 15 Damage Taken 883 | 11 286 116 470 Core 177 | 10 59 37 71 Absorbed by Shields . | . . . . Ignored by Resistances 256 | . 89 33 134 Regen/Repaired (Parts) 33 | . 33 . . Core Remaining (%) 76 | 96 . 57 . Volleys Fired 91 | 2 44 15 30 Largest 2 | 2 2 2 2 Hottest 89 | 60 60 53 89 Shots Fired 147 | 4 76 22 45 Gun 130 | 4 76 15 35 Cannon 7 | . . . 7 Launcher 10 | . . 7 3 Special . | . . . . Kinetic 79 | 2 44 15 18 Thermal . | . . . . Explosive 3 | . . 1 2 Electromagnetic 65 | 2 32 6 25 Robot Hit Streak 42 | 2 18 6 42 Robot Miss Streak 3 | 1 2 3 1 Penetration Max . | . . . . Secondary Targets . | . . . . Shots Hit Robots 118 | 3 63 12 40 Core Hits 48 | 1 19 10 18 Critical Kills . | . . . . Critical Parts Destroyed . | . . . . Critical Strikes 2 | . 2 . . Corrupt 2 | . 2 . . Melee Attacks . | . . . . Impact . | . . . . Slashing . | . . . . Piercing . | . . . . Sneak Attacks . | . . . . Combat Hostiles . | . . . . Follow-up Attacks . | . . . . Damage Inflicted 2159 | 44 884 415 816 Guns 1423 | 41 842 131 409 Cannons 116 | . . . 116 Explosions 614 | . 42 284 288 Melee . | . . . . Ramming 6 | 3 . . 3 Kinetic 773 | 14 443 131 185 Thermal 113 | . 42 71 . Explosive 347 | . . 78 269 Electromagnetic 920 | 27 399 135 359 Impact . | . . . . Slashing . | . . . . Piercing . | . . . . Highest Corruption . | . . . . Average Corruption . | . . . . Corruption Purged . | . . . . Corruption Blocked . | . . . . Overload Shots . | . . . . Overflow Damage 10 | . . . 10 Projectiles . | . . . . Explosions 10 | . . . 10 Melee . | . . . . Knockbacks . | . . . . Impact . | . . . . Kinetic . | . . . . Secondary . | . . . . Self-Inflicted Damage 34 | 1 . 33 . Shots 2 | . . 2 . Rammed 2 | 1 . . 1 Targets Rammed 2 | 1 . . 1 Kicked . | . . . . Crushed . | . . . . Highest Temperature 78 | 20 78 19 49 Average Temperature 27 | 20 36 8 14 Received Heat Transfer 549 | . 228 78 243 Siege Activations . | . . . . Robots Corrupted . | . . . . Combat Hostiles . | . . . . Parts Fried 3 | 1 2 . . Impact Corruptions . | . . . . Robots Melted . | . . . . Combat Hostiles . | . . . . Parts Melted . | . . . . Heat Transferred 150 | . 50 100 . Parts Sabotaged . | . . . . Parts Stolen . | . . . . Parts Stripped . | . . . . Power Chain Reactions 2 | . 1 1 . Alert | -11 -10 -10 -9 ------- Run | Yrd Mat Min Mat Peak Influence 334 | 5 112 85 334 Initial 20 | . 2 . 20 Average 79 | . 43 46 183 Maximum Alert Level 1 | . . . 1 Low Security (%) 92 | 100 100 100 72 Level 1 7 | . . . 27 Level 2 . | . . . . Level 3 . | . . . . Level 4 . | . . . . Level 5 . | . . . . High Security . | . . . . Max Security . | . . . . Squads Dispatched 1 | . 1 . . Investigation 1 | . 1 . . Extermination . | . . . . Reinforcement . | . . . . Assault . | . . . . Garrison . | . . . . Intercept . | . . . . Searches Triggered . | . . . . Construction Impeded . | . . . . Haulers Reinforced . | . . . . Active Scanning Responses . | . . . . Cargo Convoy Interrupts . | . . . . Stealth | -11 -10 -10 -9 --------- Run | Yrd Mat Min Mat Distress Signals 2 | . 1 . 1 Communications Jammed . | . . . . Distress Signals . | . . . . Times Spotted 37 | . 12 7 18 Peak Tracking Total 6 | . 4 2 6 Tactical Retreats 1 | . . 1 . Traps | -11 -10 -10 -9 ------- Run | Yrd Mat Min Mat Traps Triggered . | . . . . Indirectly . | . . . . Trap Hack Attempts . | . . . . Triggered . | . . . . Disarmed . | . . . . Reprogrammed . | . . . . Reused . | . . . . Traps Extracted . | . . . . Installed . | . . . . Triggered . | . . . . Machines | -11 -10 -10 -9 ---------- Run | Yrd Mat Min Mat Machines Disabled 2 | . . 2 . Max in Single Turn 2 | . . 2 . Machines Repaired . | . . . . Machines Dismantled . | . . . . Machines Sabotaged . | . . . . Overloaded Fab Kills . | . . . . Hacking | -11 -10 -10 -9 --------- Run | Yrd Mat Min Mat Machines Accessed 9 | . 5 . 4 Terminals 8 | . 4 . 4 Fabricators . | . . . . Repair Stations 1 | . 1 . . Recycling Units . | . . . . Scanalyzers . | . . . . Garrison Access . | . . . . Total Hacks 29 | . 18 . 11 Successful 15 | . 9 . 6 Failed 14 | . 9 . 5 Catastrophic . | . . . . Database Lockouts . | . . . . Manual 10 | . 3 . 7 Terminals 26 | . 15 . 11 Fabricators . | . . . . Repair Stations 3 | . 3 . . Recycling Units . | . . . . Scanalyzers . | . . . . Garrison Access . | . . . . Terminal Hacks 6 | . 4 . 2 Prototype ID Bank 1 | . 1 . . Branch Access Points 1 | . . . 1 Terminal Index 1 | . . . 1 Unreport Threat 1 | . 1 . . Hauler Manifests 1 | . 1 . . Zone Layout 1 | . 1 . . Fabricator Hacks . | . . . . Repair Station Hacks 2 | . 2 . . Scan Component 1 | . 1 . . Repair 1 | . 1 . . Recycling Unit Hacks . | . . . . Scanalyzer . | . . . . Garrison Access Hacks . | . . . . Unauthorized Hacks 7 | . 3 . 4 Terminals 7 | . 3 . 4 Track 3 | . 1 . 2 Botnet 4 | . 2 . 2 Fabricators . | . . . . Repair Stations . | . . . . Recycling Units . | . . . . Scanalyzers . | . . . . Garrison Access . | . . . . Data Cores Recovered . | . . . . Used . | . . . . Hacking Detections 9 | . 5 . 4 Full Trace Events 1 | . 1 . . Feedback Events . | . . . . Feedback Blocked . | . . . . Robot Schematics Acquired . | . . . . Robots Built . | . . . . Authchips . | . . . . Time . | . . . . Total Robot Build Rating . | . . . . Part Schematics Acquired . | . . . . Parts Built . | . . . . Authchips . | . . . . Time . | . . . . Total Part Build Rating . | . . . . Parts Repaired 1 | . 1 . . Time 13 | . 13 . . Parts Recycled . | . . . . Recycled Matter . | . . . . Retrieved Matter . | . . . . Retrieved Components . | . . . . Parts Scanalyzed . | . . . . Part Schematics Acquired . | . . . . Parts Damaged . | . . . . Bothacking | -11 -10 -10 -9 ------------ Run | Yrd Mat Min Mat Used RIF Installer . | . . . . Robots Hacked . | . . . . Non-combat . | . . . . Combat . | . . . . Robot Hacks Applied . | . . . . Relay Couplers Released . | . . . . Fabnet Peak Effective % . | . . . . Robots Rewired . | . . . . Allies Hacked . | . . . . Hacks Repelled . | . . . . Allies | -11 -10 -10 -9 -------- Run | Yrd Mat Min Mat Total Allies . | . . . . Largest Group . | . . . . Highest-Rated Group . | . . . . Highest-Rated Ally . | . . . . Total Orders . | . . . . Ally Attacks . | . . . . Total Damage . | . . . . Kills . | . . . . Allies Corrupted . | . . . . Allies Melted . | . . . . Intel | -11 -10 -10 -9 ------- Run | Yrd Mat Min Mat Robot Analysis Total . | . . . . Derelict Logs Recovered . | . . . . Drone Launches . | . . . . Drone Recoveries . | . . . . Exploration | -11 -10 -10 -9 ------------- Run | Yrd Mat Min Mat Turns Passed 1727 | 66 485 722 454 Spaces Moved 977 | 45 286 424 222 Core 1 | 1 . . . Treads 558 | . 52 284 222 Legs . | . . . . Wheels 418 | 44 234 140 . Hover . | . . . . Flight . | . . . . Fastest Speed 50 | 50 100 100 160 Average Speed 135 | 98 114 140 160 Slowest Speed 160 | 100 160 160 160 Overloaded Moves . | . . . . Propulsion Burnouts . | . . . . Robots Hopped . | . . . . Cave-ins Triggered . | . . . . Exploration Rate (%) 36 | 4 54 65 22 Regions Visited 3 Branch Regions 1 Pre-discovered Areas . | . . . . Known Exits Taken 2 | . 1 1 . Unknown Exits Taken 1 | 1 . . . Scrap Searched 1 | . . 1 . Spaces Dug 13 | . . . 13 Terrain Destroyed 44 | . 3 17 24 Melee . | . . . . Projectile . | . . . . AOE 44 | . 3 17 24 Terrain Rammed . | . . . . Walls Destroyed . | . . . . Machines Disabled . | . . . . Actions | -11 -10 -10 -9 --------- Run | Yrd Mat Min Mat Total 1225 | 59 364 529 273 Wait 106 | . 17 79 10 Move 975 | 45 285 423 222 Hop . | . . . . Pick Up 18 | 5 7 3 3 Fast Attach 7 | 6 . . 1 Attach 5 | 1 1 1 2 Detach . | . . . . Swap 15 | . 7 5 3 Drop 7 | . 3 3 1 Fire 91 | 2 44 15 30 Melee . | . . . . Ram . | . . . . Kick . | . . . . Crush 1 | . . . 1 Escape Stasis . | . . . . Rewire . | . . . . Trap . | . . . . Miscellaneous . | . . . . Route ------- -11/Scrapyard -10/Materials (discovered 3 exits: *Mat / *Min x2) -10/Mines (discovered 3 exits: *Mat x2 / [*Exi]) -9/Materials (discovered 1 exit: Min) History --------- Turn | Location | Event 15 | -11/Scrapyard | Discovered new exit (range 16) 67 | -11/Scrapyard | Entered Materials 172 | -10/Materials | Discovered new exit (range 7) 172 | -10/Materials | Discovered new exit (range 16) 301 | -10/Materials | Build established: Mutant 421 | -10/Materials | Discovered new exit (range 7) 481 | -10/Materials | Repaired EM Pulse Gun 505 | -10/Materials | Identified exit to Materials 532 | -10/Materials | Identified exit to Mines 552 | -10/Materials | Entered Mines 553 | -10/Mines | Discovered exit to Materials (range 13) 555 | -10/Mines | Joined a pair of Derelicts in attacking an 0b10 outpost 564 | -10/Mines | Met a Derelict bent on vengeance 817 | -10/Mines | Received a Rocket Launcher from a helpful Derelict 899 | -10/Mines | Deemed a non-threat by the Exiles lab entrance 900 | -10/Mines | Discovered new exit (range 5) 1121 | -10/Mines | Discovered exit to Materials (range 10) 1274 | -10/Mines | Entered Materials 1274 | -9/Materials | Evolved 2 slots: Utility x2 1382 | -9/Materials | Identified exit to Mines 1728 | -9/Materials | Self-destructed Last Messages --------------- 01607_ R-06 Scavenger collects Sml. Laser. 01609_ A-02 Transporter destroyed. 01610_ K-01 Serf collects debris. 01612_ Acquired 82 matter. 01613_ K-01 Serf collects debris. 01617_ Acquired Lgt. EM Pulse Cannon. 01620_ Dropped EM Pulse Gun. 01621_ K-01 Serf collects debris. 01654_ R-06 Scavenger collects Aluminum Leg. 01699_ Critical hit (Burn: +37). 01711_ K-01 Serf cleans the Fusion Modulator. 01713_ K-01 Serf collects debris. 01714_ K-01 Serf cleans the Fusion Modulator. 01716_ K-01 Serf collects debris. 01717_ K-01 Serf cleans the Fusion Modulator. 01719_ M-13 Machinist repairs Y-45 Defender. 01725_ Lgt. Treads destroyed. 01725_ K-01 Serf cleans the Fusion Modulator. 01728_ Critical hit (Burn: +37). 01728_ Lgt. Ion Engine destroyed. Map ----- +----------------------------------------------------+ | ?????????????????????????????????????????????????? | | ?????????????????????????????????????????????????? | | ????????????????????????????????????????#####????? | | ????????????????????????????????????????# #????? | | ???????????????????????###########??????# #????? | | ???????????????????????# | #??????# ###### | | ???????????????????????# ######## | | ?????????????##+#####??# !!! # | | ?????????????# #??# ! + | | ???????????### #??# !! # """ "" | | ???????????? #??# ### """"" """ | | ?????????????# #??# #?# """"" """ | | ?????????????# #??# #?# """"" """ | | ????## ??????# #??#####+#####?# """ "" | | ????? #### ###### ##### | | ???????? | | ?????????????# T """ | | ?????????????# k """ | | ?????????????# ######### ####### """ | | ?????????????# #???????##w ######## | | ?????????????# ########## [=#=! + | | ?????????????# # [ # ! #%""" # | | ?????????????# # """ # !+%"T" # | | ?????????????# # """ # %#[= # #####+### | | ?????????????# # """Y # %#]! # #???????? | | ?????????????# /km Y @# ######## #???????? | | ?????????????# # ] k # #??????# #???????? | | ?????????????# ########## ?????? #???????? | | ?????????????# #????????# ?????x #???????? | | ?????????????# #????????# ??? #???????? | | ?????????????# #????????# #??########???????? | | ?????????????# #????????# #?????????????????? | | ?????????????# +????????# #?????????????????? | | ?????????????# #????????# #?????????????????? | | ?????????????# #????????# #?????????????????? | | ?????????????# #????????# #?????????????????? | | ????????????? ^ ?????????# ??????????????????? | | ????????????? ?????????? ??????????????????? | | ????????????? ?????????? ??????????????????? | | ????????????? ????????????????????????????>???? | | ???????????? ????????????????????????????????? | | ???????????? ????????????????????????????????? | | ???????????? ????????????????????????????????? | | ?????????????? ????????????????????????????????? | | ?????????????????????????????????????????????????? | | ?????????????????????????????????????????????????? | | ?????????????????????????????????????????????????? | | ?????????????????????????????????????????????????? | | ?????????????????????????????????????????????????? | | ?????????????????????????????????????????????????? | +----------------------------------------------------+ Best States ------------- Heat Dissipation 28 Energy Generation 14 Energy Capacity 160 Matter Stores 300 Matter Capacity 300 Sight Range 18 Robot Scan Range 14 Terrain Scan Density 10 Resistance: KI 20 Resistance: TH 20 Resistance: EX 20 Resistance: EM 20 Resistance: I 20 Resistance: S 20 Resistance: P 20 Evasion (%) 40 Recoil Reduction 2 Offensive Hacking 10 Item Schematics ----------------- None Robot Schematics ------------------ None Fabricated ------------ Nothing Alien Tech Used ----------------- None Achievements -------------- None Challenges ------------ None Game ------ Seed EnergyRagnarokMeganuke Manual? 0 Play Time 00:23:06 Cumulative 207.0 hours Start 2024.04.18 @ 16:40:46 End 2024.04.18 @ 17:03:39 Sessions 1 Manual Loads 0 Difficulty Adventurer Special Mode None Game No. 67 Rogue 0 Adventurer 67 Explorer 0 Win Type - Total 3 Types 3/0/0/0/0/0/0/0/0 Lore% 39 Gallery% 37 Achievement% 41 Wizard Run 0 Options --------- Layout 1 ASCII 0 Keyboard 0 Movement Arrows Keybinds 0 Fullscreen 1 Font 24/Smallcaps Map View 50x35 Zoom Use 0% Tactical HUD 1 Map Filters NONE Filters NONE Steam 1 RUN: 6c962ff2-af3c-46f8-9473-3af1f4ae40db